bitfinex/quotes_BTCUSD_20240827
["timestamp","ask_amount","ask_price","bid_price","bid_amount"]
[1724800350751,0.40713203,59334.0,59320.0,0.2292]
[1724800351171,0.40613203,59333.0,59320.0,0.2292]
[1724800353118,0.40713203,59333.0,59320.0,0.2292]
[1724800353492,0.40713203,59333.0,59320.0,0.2302]
[1724800353940,0.40613203,59333.0,59320.0,0.2292]
[1724800354289,0.40713203,59333.0,59320.0,0.2292]
[1724800354957,0.40613203,59326.0,59316.0,0.1719]
[1724800355590,0.40613203,59326.0,59314.0,0.2229]
[1724800356257,0.40613203,59326.0,59316.0,0.001]
[1724800356258,0.40713203,59326.0,59316.0,0.001]
[1724800356700,0.40713203,59326.0,59315.0,1.26899999]
[1724800356946,0.40613203,59326.0,59315.0,1.26899999]
[1724800357160,0.40813203,59326.0,59315.0,1.26899999]
[1724800357421,0.001,59326.0,59316.0,0.0033716]
[1724800357649,0.02639427,59329.0,59316.0,0.0033716]
[1724800357874,0.003,59326.0,59316.0,0.0033716]
[1724800358320,0.003,59326.0,59315.0,1.26899999]
[1724800358525,0.003,59326.0,59320.0,0.000817]
[1724800358965,0.004,59326.0,59320.0,0.000817]
[1724800359441,0.005,59326.0,59321.0,1.26899999]
[1724800359889,0.41113203,59326.0,59321.0,1.26899999]
[1724800360133,0.45124523,59326.0,59321.0,1.26899999]
[1724800360364,0.2126,59325.0,59321.0,1.26899999]
[1724800362803,0.1786,59324.0,59321.0,1.26899999]
[1724800363023,0.2176,59325.0,59321.0,1.26899999]
[1724800363254,0.003,59325.0,59321.0,1.26899999]
[1724800363486,0.002,59325.0,59321.0,1.47869999]
[1724800363716,0.002,59325.0,59322.0,1.27237107]
[1724800363973,0.40613203,59347.0,59325.0,1.26399999]
[1724800363974,0.2138,59347.0,59325.0,1.26399999]
[1724800364217,0.07531298,59360.0,59325.0,1.26399999]
[1724800364218,0.50540786,59346.0,59334.0,0.005]
[1724800364441,0.2138,59360.0,59336.0,0.389]
[1724800364674,0.2138,59360.0,59338.0,0.2203]
[1724800364885,0.2138,59360.0,59339.0,0.1]
[1724800365971,0.014,59347.0,59339.0,0.1]
[1724800366197,0.40613203,59355.0,59340.0,1.26399999]
[1724800366431,0.40613203,59355.0,59341.0,0.1]
[1724800366654,0.40613203,59355.0,59340.0,1.26399999]
[1724800366892,0.2224,59353.0,59340.0,1.26399999]
[1724800367115,0.001,59347.0,59340.0,1.26399999]
[1724800367336,0.001,59347.0,59340.0,1.26699999]
[1724800367548,0.2224,59353.0,59340.0,1.26699999]
[1724800368204,0.1788,59352.0,59340.0,1.26699999]
[1724800368418,0.40613203,59348.0,59340.0,1.26699999]
[1724800368862,0.40613203,59348.0,59340.0,1.26399999]
[1724800369089,0.2158,59350.0,59340.0,0.003]
[1724800369286,0.40613203,59343.0,59340.0,0.003]
[1724800369500,0.2158,59342.0,59333.0,1.26399999]
[1724800370378,0.40613203,59343.0,59334.0,0.00337056]
[1724800370379,0.004,59343.0,59334.0,0.00337056]
[1724800370579,0.004,59343.0,59335.0,0.1748]
[1724800370731,0.1788,59352.0,59336.0,0.00337009]
[1724800370732,0.004,59342.0,59336.0,0.00337009]
[1724800370939,0.007,59342.0,59336.0,0.00337009]
[1724800372036,0.003,59342.0,59336.0,0.00337009]
[1724800372238,0.00089981,59348.0,59336.0,0.00337009]
[1724800372464,0.00089981,59348.0,59337.0,1.26399999]
[1724800372642,0.00089981,59348.0,59338.0,0.00337002]
[1724800372838,0.00089981,59348.0,59337.0,1.26399999]
[1724800373631,0.00089981,59348.0,59338.0,0.00337002]
[1724800373805,0.00489981,59348.0,59337.0,1.26399999]
[1724800374036,0.3954,59347.0,59337.0,1.26399999]
[1724800374241,0.40613203,59343.0,59337.0,1.26399999]
[1724800374827,0.3954,59347.0,59337.0,1.26399999]
[1724800375231,0.02639051,59343.0,59337.0,1.26399999]
[1724800375598,0.00989981,59348.0,59339.0,0.228]
[1724800375814,0.005,59365.0,59337.0,1.26399999]
[1724800375816,0.00061524,59369.0,59356.0,0.228]
[1724800376032,0.00061524,59369.0,59357.0,0.34066077]
[1724800376456,0.00061524,59369.0,59358.0,0.1]
[1724800377302,0.00189981,59362.0,59359.0,0.00336852]
[1724800377514,0.00189981,59362.0,59360.0,0.228]
[1724800377689,0.00189981,59362.0,59361.0,0.399829]
[1724800377935,0.00189981,59362.0,59361.0,0.499829]
[1724800378144,0.00189981,59362.0,59361.0,0.55122123]
[1724800378353,0.00189981,59362.0,59361.0,0.499829]
[1724800378561,0.00189981,59362.0,59361.0,0.328]
[1724800378767,0.00089981,59362.0,59361.0,0.328]
[1724800378940,0.00189981,59362.0,59361.0,0.328]
[1724800379183,0.00289981,59362.0,59361.0,0.328]
[1724800379386,0.00089981,59362.0,59361.0,0.328]
[1724800379781,0.00289981,59362.0,59361.0,0.338]
[1724800380012,0.00189981,59362.0,59361.0,0.338]
[1724800380246,0.00289981,59362.0,59361.0,0.338]
[1724800382012,0.00289981,59362.0,59361.0,0.11]
[1724800382258,0.00289981,59362.0,59361.0,0.01]
[1724800382541,0.00289981,59362.0,59361.0,0.01336876]
[1724800384083,0.00289981,59362.0,59361.0,0.23956876]
[1724800384297,0.00289981,59362.0,59361.0,0.33956876]
[1724800384713,0.00289981,59362.0,59361.0,0.3362]
[1724800385722,0.00289981,59362.0,59361.0,0.50466077]
[1724800386139,0.00289981,59362.0,59361.0,1.60019999]
[1724800386355,0.00289981,59362.0,59361.0,1.37399999]
[1724800389853,0.00289981,59362.0,59361.0,1.54246076]
[1724800390608,0.00289981,59362.0,59361.0,1.76276076]
[1724800391095,0.00289981,59362.0,59361.0,1.59429999]
[1724800391247,0.00289981,59362.0,59361.0,1.37399999]
[1724800396207,0.00289981,59362.0,59361.0,1.27399999]
[1724800396208,0.17039981,59362.0,59361.0,1.27399999]
[1724800396412,0.44040979,59362.0,59361.0,1.27399999]
[1724800396721,0.40059981,59362.0,59361.0,0.01]
[1724800397442,0.39959981,59362.0,59348.0,0.000818]
[1724800397817,0.39959981,59362.0,59361.0,0.004]
[1724800398015,0.47073527,59362.0,59361.0,0.004]
[1724800398248,0.47073527,59362.0,59348.0,0.000818]
[1724800398249,0.005,59354.0,59348.0,0.000818]
[1724800398451,0.1766,59361.0,59348.0,0.000818]
[1724800398452,0.40613203,59349.0,59348.0,0.000818]
[1724800398656,0.79883203,59349.0,59348.0,0.000818]
[1724800398867,0.90221523,59349.0,59348.0,0.000818]
[1724800399765,0.91021523,59349.0,59348.0,0.000818]
[1724800399970,0.90221523,59349.0,59348.0,0.000818]
[1724800400896,0.87921523,59349.0,59348.0,0.000818]
[1724800401098,0.89321523,59349.0,59348.0,0.001818]
[1724800401321,0.90721523,59349.0,59348.0,0.001818]
[1724800401726,0.89321523,59349.0,59348.0,0.000818]
[1724800402164,0.89121523,59349.0,59348.0,0.001818]
[1724800402484,0.90221523,59349.0,59348.0,0.001818]
[1724800402921,0.92860613,59349.0,59348.0,0.001818]
[1724800403117,0.93360613,59349.0,59348.0,0.001818]
[1724800403437,0.95660613,59349.0,59348.0,0.001818]
[1724800404232,0.91921523,59349.0,59348.0,0.001818]
[1724800404653,0.90721523,59349.0,59348.0,0.000818]
[1724800404829,0.91821523,59349.0,59348.0,0.000818]
[1724800405033,0.93021523,59349.0,59348.0,0.001818]
[1724800405707,0.91821523,59349.0,59348.0,0.000818]
[1724800406042,0.91821523,59349.0,59348.0,0.001818]
[1724800406043,0.91901243,59349.0,59348.0,0.001818]
[1724800406387,1.00701243,59349.0,59348.0,0.000818]
[1724800407430,1.04740431,59349.0,59348.0,0.000818]
[1724800407719,1.03340431,59349.0,59348.0,0.000818]
[1724800407874,1.04740431,59349.0,59348.0,0.000818]
[1724800408122,1.06140431,59349.0,59348.0,0.000818]
[1724800408294,1.04740431,59349.0,59348.0,0.000818]
[1724800409140,1.06140431,59349.0,59348.0,0.000818]
[1724800409307,1.06140431,59349.0,59328.0,1.26399999]
[1724800409308,0.40613203,59330.0,59328.0,1.26399999]
[1724800409516,0.40613203,59330.0,59328.0,0.50540786]
[1724800409712,0.40613203,59330.0,59320.0,0.000817]
[1724800409713,0.225,59329.0,59320.0,0.000817]
[1724800410608,0.005,59326.0,59320.0,0.000817]
[1724800410811,0.31434289,59326.0,59320.0,0.000817]
[1724800411023,0.60844289,59326.0,59320.0,0.000817]
[1724800411236,0.005,59322.0,59320.0,0.000817]
[1724800411470,0.80393203,59321.0,59320.0,0.000817]
[1724800411671,0.91782523,59321.0,59320.0,0.000817]
[1724800411871,0.95333746,59321.0,59320.0,0.000817]
[1724800412545,0.95493203,59321.0,59320.0,0.000817]
[1724800412750,0.94093203,59321.0,59320.0,0.000817]
[1724800414062,0.92693203,59321.0,59320.0,0.000817]
[1724800414207,0.95293203,59321.0,59320.0,0.000817]
[1724800414419,1.03472523,59321.0,59320.0,0.000817]
[1724800414624,1.02772523,59321.0,59320.0,0.000817]
[1724800415050,1.04172523,59321.0,59320.0,0.000817]
[1724800415279,1.05572523,59321.0,59320.0,0.000817]
[1724800415498,1.02772523,59321.0,59320.0,0.000817]
[1724800415935,1.05072523,59321.0,59320.0,0.000817]
[1724800416131,1.05572523,59321.0,59320.0,0.000817]
[1724800416335,0.98133742,59321.0,59320.0,0.000817]
[1724800417204,0.95333742,59321.0,59320.0,0.000817]
[1724800417439,0.96733742,59321.0,59320.0,0.000817]
[1724800418285,0.98133742,59321.0,59320.0,0.000817]
[1724800418504,0.96733742,59321.0,59320.0,0.000817]
[1724800418724,1.03816577,59321.0,59320.0,0.000817]
[1724800418942,1.05216577,59321.0,59320.0,0.000817]
[1724800419590,1.05716577,59321.0,59320.0,0.000817]
[1724800420024,1.05716577,59321.0,59299.0,0.236198]
[1724800420025,0.005,59310.0,59299.0,0.008998]
[1724800420244,0.2141,59308.0,59299.0,0.008998]
[1724800421526,0.2281,59308.0,59299.0,0.008998]
[1724800421729,0.1,59307.0,59299.0,0.008998]
[1724800422524,0.328,59307.0,59299.0,0.008998]
[1724800423146,0.33353319,59307.0,59299.0,0.008998]
[1724800423348,0.39142783,59307.0,59299.0,0.008998]
[1724800424093,0.41783679,59307.0,59299.0,0.008998]
[1724800424535,0.81543203,59300.0,59299.0,0.008998]
[1724800424738,0.81543203,59300.0,59295.0,0.00818]
[1724800425032,0.005,59297.0,59295.0,0.00818]
[1724800425230,0.01525952,59296.0,59295.0,0.00818]
[1724800427135,0.24325952,59296.0,59295.0,0.00818]
[1724800427378,0.005,59293.0,59288.0,0.00818]
[1724800427579,0.65017377,59289.0,59288.0,0.00818]
[1724800427984,0.75017377,59289.0,59288.0,0.00818]
[1724800428203,0.75017377,59289.0,59273.0,0.29948]
[1724800428390,0.40613203,59280.0,59273.0,0.29948]
[1724800428595,0.01803346,59279.0,59273.0,0.29948]
[1724800431227,0.01903346,59279.0,59273.0,0.29948]
[1724800432123,0.02003346,59279.0,59273.0,0.29948]
[1724800433513,0.02003346,59279.0,59273.0,0.1685]
[1724800433718,0.08350667,59279.0,59273.0,0.1685]
[1724800433919,0.02003346,59279.0,59273.0,0.1685]
[1724800434150,0.01903346,59279.0,59273.0,0.1685]
[1724800434328,0.01903346,59279.0,59266.0,2.06199999]
[1724800434329,0.2111,59278.0,59266.0,2.06199999]
[1724800434691,0.01867386,59277.0,59266.0,2.06199999]
[1724800434975,0.01867386,59277.0,59265.0,0.47868]
[1724800434976,0.01617386,59277.0,59267.0,1.47909999]
[1724800435377,0.02642019,59276.0,59267.0,1.47909999]
[1724800435584,0.01624503,59275.0,59267.0,1.47909999]
[1724800436205,0.01624503,59275.0,59268.0,0.1751]
[1724800437016,0.01624503,59275.0,59269.0,0.2143]
[1724800437439,0.001,59276.0,59269.0,0.2143]
[1724800437613,0.01710271,59276.0,59269.0,0.2143]
[1724800437812,0.01610271,59276.0,59269.0,0.2143]
[1724800438219,0.02641864,59283.0,59269.0,0.2143]
[1724800438453,0.01560461,59282.0,59269.0,0.2143]
[1724800439144,0.001,59276.0,59269.0,0.2143]
[1724800439325,0.01560461,59282.0,59269.0,0.2143]
[1724800439774,0.01560461,59282.0,59270.0,1.26399999]
[1724800440564,0.001,59276.0,59270.0,1.26399999]
[1724800440996,0.01603154,59275.0,59270.0,1.26399999]
[1724800441133,0.2111,59274.0,59270.0,1.26399999]
[1724800441341,0.01617386,59273.0,59270.0,1.26399999]
[1724800441994,0.01617386,59273.0,59271.0,0.2239]
[1724800442203,0.01617386,59273.0,59270.0,1.26399999]
[1724800442409,0.22917386,59273.0,59270.0,1.26399999]
[1724800443945,0.40613203,59271.0,59269.0,0.000818]
[1724800444145,0.01645852,59270.0,59269.0,0.000818]
[1724800445390,0.01745852,59270.0,59269.0,0.000818]
[1724800446060,0.01745852,59270.0,59269.0,1.44619246]
[1724800446061,0.001,59270.0,59269.0,1.44619246]
[1724800446270,0.001,59270.0,59269.0,1.44281799]
[1724800447200,0.002,59270.0,59269.0,1.44281799]
[1724800448459,0.002,59270.0,59269.0,1.67541799]
[1724800449379,0.001,59270.0,59269.0,1.67541799]
[1724800449751,0.001,59270.0,59269.0,1.77541799]
[1724800450818,0.001,59270.0,59269.0,1.94387876]
[1724800451038,0.002,59270.0,59269.0,1.96987876]
[1724800451374,0.002,59270.0,59269.0,1.97487876]
[1724800451778,0.00089981,59296.0,59271.0,0.229]
[1724800452020,0.00089981,59296.0,59270.0,0.005]
[1724800452021,0.50540786,59289.0,59275.0,0.229]
[1724800452226,0.00089981,59296.0,59276.0,0.1]
[1724800452457,0.00089981,59296.0,59278.0,0.2223]
[1724800452736,0.00089981,59296.0,59280.0,0.1693]
[1724800452935,0.00089981,59296.0,59281.0,0.22007289]
[1724800453391,0.00089981,59296.0,59283.0,0.1813]
[1724800453588,0.00089981,59296.0,59289.0,0.005]
[1724800453793,0.00089981,59296.0,59282.0,0.14472037]
[1724800453794,0.00089981,59296.0,59295.0,0.005]
[1724800453993,0.50540786,59314.0,59302.0,0.2192]
[1724800454208,0.2267,59321.0,59301.0,0.1766]
[1724800454209,0.2267,59321.0,59304.0,0.2192]
[1724800454620,0.63283203,59321.0,59304.0,0.2192]
[1724800455021,0.63283203,59321.0,59305.0,0.00337166]
[1724800455242,0.02640311,59317.0,59305.0,0.00337166]
[1724800455563,0.02640311,59317.0,59304.0,0.2192]
[1724800455990,0.63283203,59321.0,59304.0,0.2192]
[1724800456989,0.63783203,59321.0,59304.0,0.2192]
[1724800457209,0.63283203,59321.0,59304.0,0.2192]
[1724800457417,0.63483203,59321.0,59304.0,0.2192]
[1724800457616,0.63983203,59321.0,59305.0,1.26310018]
[1724800457820,0.63783203,59321.0,59305.0,1.26310018]
[1724800458137,0.63883203,59321.0,59305.0,1.26310018]
[1724800458667,0.63783203,59321.0,59305.0,1.26310018]
[1724800459047,0.63883203,59321.0,59305.0,1.26310018]
[1724800459461,0.63383203,59321.0,59305.0,1.26310018]
[1724800459668,0.2257,59313.0,59305.0,1.26310018]
[1724800460828,0.2257,59319.0,59306.0,0.22987207]
[1724800461264,0.2257,59319.0,59307.0,0.1668]
[1724800461489,0.2257,59319.0,59305.0,1.26910018]
[1724800461490,0.40613203,59315.0,59305.0,1.26910018]
[1724800461697,0.40613203,59315.0,59305.0,1.26310018]
[1724800461902,0.2128,59314.0,59305.0,1.26310018]
[1724800462101,0.02640449,59313.0,59306.0,0.002]
[1724800462314,0.1812,59312.0,59306.0,0.002]
[1724800462563,0.1812,59312.0,59297.0,0.8684]
[1724800462564,0.2228,59307.0,59297.0,0.4705]
[1724800463524,0.02640757,59305.0,59297.0,0.4705]
[1724800464663,0.03040757,59305.0,59297.0,0.4705]
[1724800465118,0.02640757,59305.0,59297.0,0.4705]
[1724800465323,0.03140757,59305.0,59297.0,0.4705]
[1724800465695,0.02740757,59305.0,59297.0,0.4705]
[1724800465902,0.02740757,59305.0,59298.0,0.00337256]
[1724800466080,0.02740757,59305.0,59297.0,0.4705]
[1724800466468,0.02740757,59305.0,59298.0,1.26310018]
[1724800467089,0.02740757,59305.0,59299.0,0.17267236]
[1724800467417,0.02740757,59305.0,59298.0,1.26310018]
[1724800467630,0.02640757,59305.0,59298.0,1.26310018]
[1724800468443,0.02640757,59305.0,59299.0,0.00337226]
[1724800468444,0.02740757,59305.0,59299.0,0.00337226]
[1724800468699,0.001,59305.0,59300.0,1.26310018]
[1724800468863,0.001,59305.0,59301.0,0.1]
[1724800469269,0.001,59305.0,59302.0,0.00337172]
[1724800469467,0.001,59305.0,59303.0,0.2194]
[1724800469675,0.001,59305.0,59304.0,0.0033717]
[1724800470347,0.2201,59322.0,59304.0,0.0033717]
[1724800470664,0.001,59305.0,59304.0,0.0033717]
[1724800471104,0.2201,59322.0,59304.0,0.0033717]
[1724800471272,0.00089981,59326.0,59305.0,1.82026095]
[1724800471510,0.00089981,59326.0,59311.0,0.005]
[1724800471700,0.00089981,59326.0,59313.0,0.2194]
[1724800471900,0.00089981,59326.0,59312.0,0.36413158]
[1724800471901,0.00089981,59326.0,59315.0,0.2194]
[1724800472191,0.00089981,59326.0,59316.0,1.26310018]
[1724800472397,0.00389981,59321.0,59317.0,0.0033713]
[1724800472603,0.00389981,59321.0,59317.0,0.17183207]
[1724800472817,0.00389981,59321.0,59317.0,0.16846077]
[1724800473033,0.00389981,59321.0,59319.0,0.4138]
[1724800473258,0.00389981,59321.0,59320.0,0.51206077]
[1724800473479,0.00389981,59321.0,59320.0,0.5154314]
[1724800473480,0.00589981,59321.0,59320.0,0.5154314]
[1724800473709,0.009009,59337.0,59328.0,1.25930056]
[1724800473920,0.009009,59337.0,59325.0,0.005]
[1724800473921,0.009009,59337.0,59329.0,1.83336133]
[1724800474131,0.009009,59337.0,59329.0,1.93336133]
[1724800474331,0.009009,59337.0,59330.0,1.26267068]
[1724800474534,0.009009,59337.0,59331.0,0.2076]
[1724800474748,0.009009,59337.0,59332.0,0.1]
[1724800475218,0.010009,59337.0,59332.0,0.1]
[1724800475959,0.217109,59337.0,59332.0,0.1]
[1724800476173,0.217109,59337.0,59331.0,0.1]
[1724800476627,0.216109,59337.0,59331.0,0.1]
[1724800476842,0.217109,59337.0,59331.0,0.111]
[1724800477056,0.217109,59337.0,59331.0,0.1]
[1724800477264,0.217109,59337.0,59332.0,0.014]
[1724800477487,0.218109,59337.0,59332.0,0.014]
[1724800477709,0.218109,59337.0,59331.0,0.112]
[1724800477923,0.218109,59337.0,59331.0,0.124]
[1724800478158,0.216109,59337.0,59331.0,0.112]
[1724800478376,0.009009,59337.0,59332.0,1.25930056]
[1724800478608,0.010009,59337.0,59332.0,1.26830056]
[1724800478837,0.010009,59337.0,59333.0,0.1]
[1724800479444,0.010009,59337.0,59334.0,0.21337009]
[1724800479651,0.009009,59337.0,59335.0,0.1]
[1724800479856,0.009009,59337.0,59336.0,0.00336989]
[1724800480061,0.010009,59337.0,59336.0,0.00336989]
[1724800480636,0.011009,59337.0,59336.0,0.00336989]
[1724800481055,0.009009,59337.0,59336.0,0.01536989]
[1724800481515,0.010009,59337.0,59336.0,0.023]
[1724800483533,0.010009,59337.0,59336.0,0.24826997]
[1724800484370,0.010009,59337.0,59336.0,1.50757053]
[1724800485503,0.010009,59337.0,59336.0,1.60757053]
[1724800486666,0.010009,59337.0,59336.0,1.60420056]
[1724800486869,0.010009,59337.0,59336.0,1.77266133]
[1724800487071,0.010009,59337.0,59336.0,1.96886133]
[1724800488096,0.1728,59353.0,59339.0,1.24929156]
[1724800488296,0.2198,59354.0,59340.0,1.42112188]
[1724800488497,0.2198,59354.0,59341.0,0.1]
[1724800488703,0.2198,59354.0,59341.0,0.26846077]
[1724800490748,0.2238,59354.0,59341.0,0.26846077]
[1724800490949,0.001,59353.0,59341.0,0.26846077]
[1724800491845,0.001,59353.0,59341.0,0.27046077]
[1724800492022,0.2198,59354.0,59341.0,0.27046077]
[1724800492224,0.2198,59354.0,59341.0,0.26846077]
[1724800492397,0.2208,59354.0,59341.0,0.26846077]
[1724800492581,0.2208,59354.0,59341.0,0.1]
[1724800493181,0.2208,59354.0,59342.0,1.24929156]
[1724800493585,0.2198,59354.0,59342.0,1.24929156]
[1724800494199,0.008998,59356.0,59343.0,1.7381219]
[1724800494342,0.008998,59356.0,59344.0,0.1698]
[1724800494538,0.008998,59356.0,59345.0,0.16846077]
[1724800494755,0.008998,59356.0,59344.0,0.1698]
[1724800494955,0.221,59355.0,59345.0,0.1]
[1724800496256,0.221,59355.0,59344.0,0.1]
[1724800497116,0.221,59355.0,59345.0,0.00336953]
[1724800497318,0.001,59355.0,59345.0,0.00336953]
[1724800497509,0.001,59355.0,59346.0,0.39316077]
[1724800497710,0.008998,59356.0,59347.0,0.10336921]
[1724800497852,0.008998,59356.0,59347.0,0.26846077]
[1724800498056,0.001,59355.0,59347.0,0.26846077]
[1724800498277,0.001,59355.0,59348.0,0.00336917]
[1724800498627,0.008998,59356.0,59348.0,0.00336917]
[1724800498836,0.008998,59356.0,59347.0,0.26846077]
[1724800499320,0.008998,59356.0,59349.0,0.1692]
[1724800499549,0.008998,59356.0,59350.0,0.00336904]
[1724800500286,0.008998,59356.0,59349.0,0.1692]
[1724800500505,0.001,59355.0,59349.0,0.1692]
[1724800501292,0.008998,59356.0,59349.0,0.1692]
[1724800501729,0.2214,59355.0,59350.0,0.012]
[1724800501932,0.4038,59355.0,59349.0,0.01136946]
[1724800502143,0.008998,59356.0,59349.0,0.00336946]
[1724800502326,0.008998,59356.0,59350.0,0.3837]
[1724800502520,0.008998,59356.0,59351.0,0.00336913]
[1724800502735,0.008998,59356.0,59350.0,0.3837]
[1724800502736,0.008998,59356.0,59352.0,1.24929156]
[1724800503199,0.008998,59356.0,59349.0,0.017]
[1724800503368,0.1776,59354.0,59349.0,0.017]
[1724800503568,0.1776,59354.0,59349.0,0.007]
[1724800503788,0.1776,59354.0,59352.0,0.009]
[1724800504204,0.1776,59354.0,59344.0,1.24929156]
[1724800504205,0.2099,59353.0,59350.0,0.007]
[1724800504798,0.2099,59353.0,59344.0,1.24929156]
[1724800505026,0.2099,59353.0,59352.0,0.009]
[1724800505566,0.2099,59353.0,59352.0,0.012]
[1724800506465,0.001,59354.0,59352.0,0.012]
[1724800506970,0.001,59354.0,59350.0,0.003]
[1724800506971,0.2099,59353.0,59350.0,0.003]
[1724800507648,0.2099,59353.0,59344.0,1.25429156]
[1724800507863,0.2099,59353.0,59352.0,0.003]
[1724800508072,0.3924,59353.0,59352.0,0.003]
[1724800508426,0.3924,59353.0,59350.0,0.004]
[1724800508633,0.3924,59353.0,59345.0,1.24929156]
[1724800509318,0.32433378,59348.0,59345.0,1.24929156]
[1724800509495,0.008998,59356.0,59344.0,0.002]
[1724800509496,0.32433378,59346.0,59344.0,0.002]
[1724800509698,0.1992,59345.0,59344.0,0.002]
[1724800510076,0.3817,59345.0,59344.0,0.002]
[1724800510276,0.1825,59343.0,59318.0,0.50540786]
[1724800510477,0.70603378,59327.0,59318.0,0.50540786]
[1724800510861,0.70603378,59327.0,59306.0,0.2117]
[1724800510862,0.70603378,59327.0,59309.0,0.1827]
[1724800512124,0.70803378,59327.0,59310.0,0.0033714]
[1724800512365,0.2022,59327.0,59310.0,0.0033714]
[1724800512618,0.2022,59327.0,59309.0,0.1827]
[1724800512619,0.003,59327.0,59322.0,0.1717]
[1724800512790,0.003,59327.0,59316.0,0.3878]
[1724800512791,0.32733378,59327.0,59316.0,0.3878]
[1724800513211,0.32533378,59327.0,59316.0,0.3878]
[1724800513467,0.32433378,59327.0,59317.0,0.1]
[1724800513663,0.32433378,59327.0,59326.0,0.004818]
[1724800513855,0.32433378,59327.0,59326.0,0.002818]
[1724800514012,0.70693378,59327.0,59326.0,0.002818]
[1724800514269,0.70793378,59327.0,59326.0,0.007818]
[1724800514424,0.70793378,59327.0,59326.0,0.012818]
[1724800515002,0.73432951,59327.0,59326.0,0.007818]
[1724800515412,0.73532951,59327.0,59326.0,0.008818]
[1724800515609,0.002,59327.0,59326.0,0.008818]
[1724800516325,0.002,59327.0,59326.0,1.25110956]
[1724800516326,0.001,59327.0,59326.0,1.25110956]
[1724800516529,0.2105,59331.0,59326.0,1.25010956]
[1724800516748,0.002,59327.0,59326.0,1.25010956]
[1724800516965,0.002,59327.0,59326.0,1.25210956]
[1724800517214,0.003,59327.0,59326.0,1.25910956]
[1724800517438,0.2105,59331.0,59326.0,1.25010956]
[1724800517640,0.2105,59331.0,59326.0,1.25110956]
[1724800517930,0.2105,59331.0,59326.0,1.25410956]
[1724800518138,0.2105,59331.0,59326.0,1.25310956]
[1724800518347,0.2105,59331.0,59326.0,1.25810956]
[1724800519376,0.2105,59331.0,59326.0,1.26510956]
[1724800519377,0.001,59327.0,59326.0,1.26510956]
[1724800519865,0.2105,59331.0,59326.0,1.25010956]
[1724800520072,0.2105,59331.0,59327.0,1.24929156]
[1724800521718,0.2105,59331.0,59327.0,1.25029156]
[1724800521930,0.3731,59341.0,59327.0,1.25029156]
[1724800522137,0.3731,59341.0,59328.0,1.40959156]
[1724800523437,0.3731,59341.0,59328.0,1.24929156]
[1724800523438,0.2024,59338.0,59328.0,1.24929156]
[1724800523648,0.32433378,59333.0,59328.0,1.24929156]
[1724800524074,0.2024,59332.0,59328.0,1.25429156]
[1724800524322,0.2024,59332.0,59328.0,1.25029156]
[1724800524525,0.2024,59332.0,59328.0,1.24929156]
[1724800524764,0.2024,59332.0,59328.0,1.25829156]
[1724800525731,0.1647,59331.0,59328.0,1.26429156]
[1724800525953,0.1647,59331.0,59328.0,0.009]
[1724800525954,0.2037,59330.0,59328.0,0.009]
[1724800526335,0.2037,59330.0,59328.0,0.017]
[1724800526520,0.2037,59330.0,59326.0,0.000818]
[1724800526718,0.19109581,59331.0,59326.0,0.000818]
[1724800526719,0.53393378,59327.0,59326.0,0.000818]
[1724800526934,0.70483378,59327.0,59326.0,0.000818]
[1724800529566,0.3805,59327.0,59326.0,0.000818]
[1724800529790,0.70483378,59327.0,59326.0,0.000818]
[1724800530033,0.70983378,59327.0,59326.0,0.001818]
[1724800530487,0.70883378,59327.0,59326.0,0.000818]
[1724800530691,0.70483378,59327.0,59326.0,0.000818]
[1724800530894,0.70583378,59327.0,59326.0,0.000818]
[1724800531098,0.70783378,59327.0,59326.0,0.000818]
[1724800531540,0.53693378,59327.0,59326.0,0.000818]
[1724800533294,0.53393378,59327.0,59326.0,0.000818]
[1724800533706,0.53493378,59327.0,59326.0,0.000818]
[1724800533919,0.70213378,59327.0,59305.0,0.000818]
[1724800534108,0.49153378,59306.0,59305.0,0.000818]
[1724800534318,0.54343378,59297.0,59283.0,0.213]
[1724800536388,0.2184,59296.0,59277.0,0.00817]
[1724800536619,0.49493378,59297.0,59277.0,0.00817]
[1724800536620,0.32433378,59278.0,59277.0,0.00817]
[1724800538352,0.00557782,59301.0,59277.0,0.00817]
[1724800538353,0.2089,59300.0,59279.0,0.1986]
[1724800538552,0.50540786,59294.0,59280.0,0.19146077]
[1724800538700,0.2089,59300.0,59280.0,0.19146077]
[1724800538903,0.2089,59300.0,59281.0,0.1986]
[1724800539124,0.2089,59300.0,59283.0,0.1986]
[1724800539299,0.2089,59300.0,59284.0,0.1]
[1724800539512,0.2089,59300.0,59285.0,0.1723]
[1724800539749,0.001,59294.0,59286.0,0.1]
[1724800541413,0.2099,59300.0,59286.0,0.1]
[1724800541641,0.2089,59300.0,59286.0,0.1]
[1724800541766,0.001,59294.0,59286.0,0.106]
[1724800541979,0.001,59294.0,59286.0,0.111]
[1724800542784,0.001,59294.0,59287.0,0.00337268]
[1724800543153,0.001,59294.0,59288.0,0.2108]
[1724800543301,0.001,59294.0,59289.0,0.00337265]
[1724800543680,0.001,59294.0,59288.0,0.2108]
[1724800543908,0.001,59294.0,59289.0,1.24929156]
[1724800544118,0.002,59294.0,59290.0,0.00337262]
[1724800544378,0.002,59294.0,59290.0,0.10337262]
[1724800544544,0.1984,59310.0,59291.0,0.3697]
[1724800544775,0.001,59294.0,59292.0,1.24929156]
[1724800544978,0.002,59294.0,59293.0,1.24929156]
[1724800545398,0.001,59294.0,59293.0,1.24929156]
[1724800545816,0.001,59294.0,59293.0,1.92035233]
[1724800546059,0.40628127,59318.0,59298.0,1.24829156]
[1724800546060,0.1995,59318.0,59298.0,1.24829156]
[1724800546205,0.1995,59318.0,59299.0,1.81435233]
[1724800546386,0.1995,59318.0,59300.0,0.1]
[1724800546592,0.1995,59318.0,59301.0,0.19146077]
[1724800546797,0.1995,59318.0,59302.0,0.00337168]
[1724800546798,0.001,59310.0,59302.0,0.00337168]